fUST/lending_fUST_20240124
["ID","MTS","AMOUNT","RATE_DAILY","PERIOD"]
[312586081,1706032232253,-1274.52538808,0.00036166,2]
[312586083,1706032232262,-283.29570516,0.00036177,3]
[312586085,1706032232271,-154.86062544,0.00036177,4]
[312586087,1706032232280,-300.0,0.00036177,4]
[312586089,1706032232289,-351.52136299,0.00036177,4]
[312586091,1706032232298,-154.86062544,0.00036177,4]
[312586093,1706032232308,-2453.74929659,0.00036177,2]
[312586095,1706032232317,-1026.65405285,0.00036177,2]
[312586097,1706032232326,-364.12370552,0.00036177,7]
[312586099,1706032232335,-199.0104823,0.00036178,2]
[312586101,1706032232344,-153.0,0.00036478,2]
[312586103,1706032232353,-153.0,0.00037178,2]
[312586105,1706032232362,-155.61925481,0.000379,2]
[312586107,1706032232370,-3519.57,0.0003799,3]
[312586109,1706032232380,-2932.98,0.0003799,3]
[312586111,1706032232390,-2444.15,0.0003799,3]
[312586112,1706032232399,-2036.79,0.0003799,3]
[312586114,1706032232409,-37.9869841,0.00037998,4]
[312586116,1706032232420,-951.61726101,0.00037998,4]
[312586118,1706032232429,-264.9009263,0.00037998,4]
[312586120,1706032232442,-1253.15755419,0.00037998,4]
[312586122,1706032232451,-158.17443572,0.00037998,2]
[312586124,1706032232460,-294.81882163,0.00037998,4]
[312586126,1706032232471,-161.23083254,0.00037998,2]
[312586128,1706032232482,-188.15847668,0.00037998,4]
[312586130,1706032232492,-690.52950159,0.00037998,4]
[312586132,1706032232501,-368.79624368,0.00037998,6]
[312586134,1706032232511,-873.51722344,0.00037998,4]
[312586136,1706032232522,-403.93894281,0.00037998,4]
[312586138,1706032232532,-972.11539488,0.00037998,4]
[312586140,1706032232541,-2036.66963907,0.00037998,4]
[312586142,1706032232550,-849.55786058,0.00037998,4]
[312586144,1706032232559,-391.51312509,0.00037998,4]
[312586146,1706032232568,-543.41992779,0.00037998,4]
[312586148,1706032232577,-507.58735553,0.00037998,2]
[312586150,1706032232586,-939.41492553,0.00037999,4]
[312586152,1706032232595,-8022.07069703,0.00037999,4]
[312586154,1706032232604,-128172.73061736,0.00038,10]
[312586268,1706032239153,-789.401,0.00038,10]
[312586269,1706032239165,-3020.55208,0.00038,10]
[312586270,1706032239176,-16000.0,0.00038,10]
[312586272,1706032239376,-45273.77790139,0.00038,10]
[312586273,1706032239387,-6432.50084612,0.00038,10]
[312586274,1706032239397,-2140.68079018,0.00038,4]
[312586275,1706032239406,-484.1526718,0.00038995,2]
[312586276,1706032239415,-638.84150465,0.0003999,4]
[312586277,1706032239426,-3492.87809,0.0003999,4]
[312586292,1706032241333,-1639.60562209,0.0003999,4]
[312586293,1706032241343,-1600.50080715,0.0004,4]
[312586294,1706032241352,-99.3612856,0.0004,4]
[312586295,1706032241363,-55.49933984,0.0004,4]
[312586296,1706032241372,-200.09186492,0.0004,4]
[312586297,1706032241382,-152.28791383,0.0004021,30]
[312586298,1706032241391,-150.98638473,0.00040277,30]
[312586299,1706032241400,-158.5370369,0.00040285,30]
[312586300,1706032241409,-150.43942456,0.00040315,30]
[312586301,1706032241418,-158.5370369,0.00040333,30]
[312586302,1706032241428,-152.28791383,0.00040454,30]
[312586303,1706032241443,-150.98638473,0.0004048,30]
[312586304,1706032241452,-152.28791383,0.00040597,30]
[312586305,1706032241461,-152.28791383,0.0004098,30]
[312586306,1706032241471,-152.28791383,0.00041006,30]
[312586307,1706032241484,-152.28791383,0.00041032,30]
[312586308,1706032241493,-150.43942456,0.00041039,30]
[312586309,1706032241502,-150.98638473,0.00041074,30]
[312586310,1706032241511,-150.98638473,0.0004108,30]
[312586311,1706032241520,-500.0,0.00041094,30]
[312586312,1706032241530,-500.0,0.00041094,30]
[312586313,1706032241539,-577.4935787,0.00041094,30]
[312586314,1706032241548,-885.29968183,0.00041095,4]
[312586315,1706032241558,-47.05958989,0.00041095,31]
[312586316,1706032241570,-452.94041011,0.00041095,31]
[312586317,1706032241579,-167.2034867,0.00041095,31]
[312586318,1706032241590,-387.19487264,0.00041095,31]
[312586319,1706032241599,-549.797594,0.00041095,31]
[312586320,1706032241609,-500.0,0.00041095,31]
[312586321,1706032241618,-500.0,0.00041095,31]
[312586322,1706032241627,-500.0,0.00041095,31]
[312586323,1706032241637,-500.0,0.00041095,7]
[312586324,1706032241646,-500.0,0.00041095,31]
[312586325,1706032241655,-500.0,0.00041095,31]
[312586326,1706032241664,-500.0,0.00041095,31]
[312586327,1706032241673,-407.22148578,0.00041095,31]
[312586328,1706032241682,-500.0,0.00041095,31]
[312586329,1706032241692,-500.0,0.00041095,31]
[312586330,1706032241701,-500.0,0.00041095,31]
[312586331,1706032241710,-385.90365149,0.00041095,31]
[312586332,1706032241719,-500.0,0.00041095,31]
[312586333,1706032241730,-507.90586278,0.00041095,31]
[312586334,1706032241738,-500.0,0.00041095,31]
[312586335,1706032241747,-226.79812851,0.00041095,31]
[312586336,1706032241757,-500.0,0.00041095,31]
[312586337,1706032241766,-500.0,0.00041095,31]
[312586338,1706032241775,-504.14575217,0.00041095,31]
[312586339,1706032241784,-500.0,0.00041095,31]
[312586340,1706032241794,-500.0,0.00041095,31]
[312586341,1706032241803,-500.0,0.00041095,31]
[312586342,1706032241813,-503.81848915,0.00041095,31]
[312586343,1706032241822,-500.0,0.00041095,31]
[312586344,1706032241831,-500.0,0.00041095,31]
[312586345,1706032241840,-500.0,0.00041095,31]
[312586346,1706032241849,-500.0,0.00041095,31]
[312586347,1706032241858,-500.0,0.00041095,31]
[312586348,1706032241867,-500.0,0.00041095,31]
[312586349,1706032241876,-500.0,0.00041095,31]
[312586350,1706032241886,-500.0,0.00041095,31]
[312586351,1706032241895,-500.0,0.00041095,31]
[312586352,1706032241904,-500.0,0.00041095,31]
[312586353,1706032241914,-500.0,0.00041095,31]
[312586354,1706032241924,-353.46062461,0.00041095,31]
[312586355,1706032241933,-500.0,0.00041095,31]
[312586356,1706032241942,-500.0,0.00041095,7]
[312586357,1706032241952,-572.16,0.00041095,31]
[312586358,1706032241961,-500.0,0.00041095,31]
[312586359,1706032241969,-500.0,0.00041095,31]
[312586360,1706032241980,-516.00841721,0.00041095,31]
[312586361,1706032241989,-500.0,0.00041095,31]
[312586362,1706032241999,-500.0,0.00041095,31]
[312586363,1706032242008,-500.0,0.00041095,31]
[312586364,1706032242017,-500.0,0.00041095,31]
[312586365,1706032242027,-500.0,0.00041095,31]
[312586366,1706032242037,-500.0,0.00041095,31]
[312586367,1706032242045,-500.0,0.00041095,31]
[312586368,1706032242055,-500.0,0.00041095,31]
[312586369,1706032242064,-500.0,0.00041095,31]
[312586370,1706032242073,-500.0,0.00041095,31]
[312586371,1706032242082,-500.0,0.00041095,31]
[312586372,1706032242092,-500.0,0.00041095,31]
[312586373,1706032242100,-500.0,0.00041095,31]
[312586374,1706032242110,-500.0,0.00041095,31]
[312586375,1706032242119,-595.67,0.00041095,31]
[312586376,1706032242128,-625.79515894,0.00041095,31]
[312586377,1706032242138,-201.54913201,0.00041095,31]
[312586378,1706032242147,-500.0,0.00041095,31]
[312586379,1706032242155,-500.0,0.00041095,31]
[312586380,1706032242164,-500.0,0.00041095,31]
[312586381,1706032242173,-500.0,0.00041095,31]
[312586382,1706032242183,-500.0,0.00041095,31]
[312586383,1706032242192,-500.0,0.00041095,31]
[312586384,1706032242201,-500.0,0.00041095,31]
[312586385,1706032242211,-500.0,0.00041095,31]
[312586386,1706032242220,-500.0,0.00041095,31]
[312586387,1706032242231,-500.0,0.00041095,31]
[312586388,1706032242240,-500.0,0.00041095,31]
[312586389,1706032242250,-500.0,0.00041095,31]
[312586390,1706032242260,-374.60112556,0.00041095,31]
[312586391,1706032242269,-1917.64,0.00041095,2]
[312586392,1706032242279,-500.0,0.00041095,31]
[312586393,1706032242288,-500.0,0.00041095,31]
[312586394,1706032242298,-500.0,0.00041095,31]
[312586395,1706032242307,-500.0,0.00041095,31]
[312586396,1706032242317,-28.41035588,0.00041095,31]
[312586397,1706032242331,-471.58964412,0.00041095,31]
[312586398,1706032242341,-500.0,0.00041095,31]
[312586399,1706032242350,-500.0,0.00041095,31]
[312586400,1706032242359,-139.04426149,0.00041095,31]
[312586461,1706032244724,-1026.65405285,0.00036177,2]
[312586464,1706032244736,-1435.20899723,0.0003799,3]
[312586609,1706032249469,-1007.66492999,0.00031111,2]
[312586610,1706032249480,-1059.04179617,0.00037989,2]
[312586619,1706032433701,1764.73099551,0.0001631,2]
[312586687,1706033354094,-154.86062544,0.00026997,4]
[312586688,1706033354117,-351.79761101,0.00026998,2]
[312586689,1706033354150,-34041.89070341,0.00027,4]
[312586690,1706033365127,-6299.87081339,0.00027,4]
[312586691,1706033365149,-681.63446217,0.00027612,2]
[312586692,1706033365169,-157.818397,0.00034062,2]
[312586693,1706033365189,-24900.0,0.00034433,2]
[312586694,1706033365208,-222.041206,0.00034453,2]
[312586695,1706033365228,-173.004369,0.00034546,2]
[312586696,1706033365249,-157.818397,0.00034991,2]
[312586697,1706033365269,-1117.11167906,0.00035,7]
[312586698,1706033365288,-157.818397,0.00035919,2]
[312586699,1706033365308,-716.29098202,0.00036177,5]
[312586700,1706033365329,-157.818397,0.00036848,2]
[312586701,1706033365357,-2497.68021867,0.0003689,3]
[312586714,1706033438778,-154.86062544,0.00034198,5]
[312586715,1706033438790,-160.76782,0.00036339,2]
[312586716,1706033438807,-1026.65405285,0.0003689,2]
[312586719,1706033438819,-300.0,0.0003689,4]
[312586721,1706033438830,-351.52136299,0.0003689,4]
[312586723,1706033438844,-7702.37195147,0.000369,10]
[312586725,1706033438861,-4551.47340756,0.000369,10]
[312586728,1706033438875,-4406.56710416,0.000369,10]
[312587105,1706033446596,-283.29570516,0.0003689,3]
[312587106,1706033446605,-4830.52429484,0.000369,10]
[312587157,1706034558107,-154.87609912,0.00034196,5]
[312587158,1706034558344,-406.8276138,0.00034197,4]
[312587159,1706034573105,-1199.48200298,0.00034197,4]
[312587160,1706034573128,-484.1526718,0.000348,2]
[312587161,1706034573148,-1117.11167906,0.00035,7]
[312587162,1706034573169,-160.76782,0.00035425,2]
[312587163,1706034573190,-4129.4188017,0.00036038,2]
[312587164,1706034573211,-1274.52538808,0.00036889,2]
[312587165,1706034573231,-796.39491917,0.000369,10]
[312587360,1706034638705,-154.87609912,0.00034198,5]
[312587361,1706034638714,-1274.52538808,0.00036889,2]
[312587363,1706034638724,-4560.41793281,0.000369,10]
[312587365,1706034638736,-1203.36100232,0.000369,10]
[312587366,1706034638762,-9404.71274762,0.000369,10]
[312587367,1706034638771,-154.86062544,0.000369,4]
[312587368,1706034638780,-403.59307079,0.000369,3]
[312587369,1706034638790,-300.0,0.000369,4]
[312587370,1706034638798,-1026.65405285,0.000369,2]
[312587371,1706034638808,-2453.74929659,0.000369,2]
[312587372,1706034638817,-351.52136299,0.000369,4]
[312587373,1706034638826,-160.76782,0.0003784,2]
[312587374,1706034638835,-2701.47,0.0003799,3]
[312587375,1706034638844,-1253.61322307,0.00037998,4]
[312587376,1706034638853,-154.9690062,0.00037998,10]
[312587377,1706034638862,-1620.63270875,0.00037998,4]
[312587378,1706034638983,-458.48479438,0.00037998,4]
[312587379,1706034638993,-1064.83285357,0.00037998,7]
[312587380,1706034639002,-168.00002645,0.00037999,4]
[312587381,1706034639011,-168.64039292,0.00038,4]
[312587382,1706034639020,-69216.34532345,0.00038,10]
[312587383,1706034639032,-9696.17581275,0.00038,10]
[312587400,1706034641796,-1413.3250752,0.00038,10]
[312587401,1706034641807,-60019.81462321,0.00038,10]
[312587402,1706034641818,-36846.69670957,0.00038,10]
[312587403,1706034641829,-4073.31608398,0.00038,10]
[312587429,1706034643756,-509.95758116,0.00038,10]
[312587430,1706034643803,-3339.52350807,0.00038,10]
[312587547,1706035749430,-154.84515485,0.00032273,5]
[312587548,1706035749451,-154.84515485,0.00032274,4]
[312587549,1706035749471,-154.86062544,0.000323,2]
[312587550,1706035749495,-160.76782,0.00035625,2]
[312587551,1706035749518,-322.76844787,0.000359,2]
[312587552,1706035749540,-11207.32260979,0.00036119,2]
[312587581,1706035831853,-154.84515485,0.00036118,5]
[312587583,1706035831863,-1148.05624419,0.00036119,2]
[312587585,1706035831874,-1495.82953632,0.00036119,2]
[312587587,1706035831884,-351.52136299,0.00036119,4]
[312587588,1706035831895,-1497.61841143,0.00036119,4]
[312587590,1706035831905,-154.84515485,0.00036119,4]
[312587592,1706035831914,-300.0,0.00036119,4]
[312587594,1706035831924,-1026.65405285,0.00036119,2]
[312587596,1706035831933,-187.29148156,0.00036889,2]
[312587598,1706035831945,-756.49233208,0.00036889,2]
[312587600,1706035831955,-387.6062811,0.000369,2]
[312587602,1706035831964,-8684.65684029,0.00038,10]
[312587682,1706035837990,-5889.15088719,0.00038,10]
[312587683,1706035838000,-5000.0,0.00038,15]
[312587684,1706035838010,-519.87920651,0.00038,2]
[312587685,1706035838019,-2140.68079018,0.00038,4]
[312587686,1706035838029,-250.0,0.00039729,30]
[312587687,1706035838038,-4039.92765172,0.0003999,4]
[312587688,1706035838047,-1600.50080715,0.0004,4]
[312587689,1706035838057,-154.86062544,0.0004,4]
[312587691,1706035838066,-409.52822169,0.000403,30]
[312587693,1706035838078,-90.47177831,0.000403,30]
[312587694,1706035838087,-200.09186492,0.00040899,4]
[312587695,1706035838096,-322.76844787,0.000409,2]
[312587696,1706035838106,-163.92892093,0.00041,2]
[312587697,1706035838118,-8357.40120755,0.00041,2]
[312587698,1706035838127,-2251.22,0.00041085,3]
[312587699,1706035838136,-460.19779524,0.00041093,20]
[312587700,1706035838149,-168.00002645,0.00041093,4]
[312587701,1706035838158,-180.696184,0.00041093,4]
[312587702,1706035838167,-1833.01399281,0.00041094,4]
[312587703,1706035838177,-501.79854839,0.00041095,31]
[312587704,1706035838187,-500.0,0.00041095,31]
[312587705,1706035838196,-500.0,0.00041095,31]
[312587706,1706035838205,-402.2782029,0.00041095,31]
[312587707,1706035838214,-500.0,0.00041095,31]
[312587708,1706035838224,-500.0,0.00041095,31]
[312587709,1706035838233,-206.12692016,0.00041095,31]
[312587710,1706035838243,-500.0,0.00041095,31]
[312587711,1706035838252,-500.0,0.00041095,31]
[312587712,1706035838262,-500.0,0.00041095,31]
[312587713,1706035838271,-781.12,0.00041095,31]
[312587714,1706035838280,-500.0,0.00041095,31]
[312587715,1706035838289,-500.0,0.00041095,31]
[312587716,1706035838300,-500.0,0.00041095,31]
[312587717,1706035838309,-500.0,0.00041095,7]
[312587718,1706035838318,-500.0,0.00041095,31]
[312587719,1706035838327,-649.08728926,0.00041095,31]
[312587720,1706035838337,-209.05983324,0.00041095,2]
[312587721,1706035838354,-290.94016676,0.00041095,2]
[312587722,1706035838363,-500.0,0.00041095,31]
[312587723,1706035838372,-500.0,0.00041095,31]
[312587724,1706035838381,-550.78189034,0.00041095,31]
[312587725,1706035838391,-500.0,0.00041095,31]
[312587726,1706035838401,-500.0,0.00041095,2]
[312587727,1706035838410,-500.0,0.00041095,31]
[312587728,1706035838419,-500.0,0.00041095,31]
[312587729,1706035838429,-500.0,0.00041095,31]
[312587730,1706035838438,-500.0,0.00041095,31]
[312587731,1706035838447,-500.0,0.00041095,7]
[312587732,1706035838456,-500.0,0.00041095,31]
[312587733,1706035838465,-500.0,0.00041095,31]
[312587734,1706035838475,-500.0,0.00041095,31]
[312587735,1706035838484,-1265.68,0.00041095,31]
[312587736,1706035838493,-500.0,0.00041095,31]
[312587737,1706035838503,-500.0,0.00041095,31]
[312587738,1706035838515,-500.0,0.00041095,31]
[312587739,1706035838524,-88.77375565,0.00041095,31]
[312587772,1706035843951,-491.28624435,0.00041095,31]
[312587773,1706035843961,-500.0,0.00041095,31]
[312587774,1706035843971,-500.0,0.00041095,31]
[312587775,1706035843980,-500.0,0.00041095,31]
[312587776,1706035843989,-500.0,0.00041095,31]
[312587777,1706035843999,-500.0,0.00041095,31]
[312587778,1706035844009,-500.0,0.00041095,31]
[312587779,1706035844018,-616.1843866,0.00041095,31]
[312587781,1706035844028,-500.0,0.00041095,31]
[312587782,1706035844037,-504.61097244,0.00041095,31]
[312587783,1706035844046,-206.5148818,0.00041095,31]
[312587784,1706035844055,-500.0,0.00041095,31]
[312587785,1706035844064,-500.0,0.00041095,31]
[312587786,1706035844074,-500.0,0.00041095,31]
[312587787,1706035844083,-500.0,0.00041095,31]
[312587789,1706035844092,-500.0,0.00041095,31]
[312587791,1706035844101,-500.0,0.00041095,7]
[312587793,1706035844110,-500.0,0.00041095,31]
[312587795,1706035844119,-511.68679362,0.00041095,31]
[312587797,1706035844128,-500.0,0.00041095,31]
[312587799,1706035844137,-500.0,0.00041095,31]
[312587801,1706035844148,-500.0,0.00041095,31]
[312587802,1706035844157,-500.0,0.00041095,31]
[312587804,1706035844166,-500.0,0.00041095,31]
[312587806,1706035844176,-500.0,0.00041095,31]
[312587808,1706035844185,-500.0,0.00041095,31]
[312587810,1706035844194,-500.0,0.00041095,31]
[312587812,1706035844203,-548.1717107,0.00041095,31]
[312587814,1706035844213,-500.0,0.00041095,31]
[312587815,1706035844222,-548.32,0.00041095,31]
[312587816,1706035844232,-500.0,0.00041095,31]
[312587817,1706035844241,-500.0,0.00041095,31]
[312587818,1706035844249,-500.0,0.00041095,31]
[312587819,1706035844259,-500.0,0.00041095,31]
[312587820,1706035844268,-500.0,0.00041095,31]
[312587821,1706035844278,-500.0,0.00041095,31]
[312587822,1706035844287,-500.0,0.00041095,31]
[312587823,1706035844296,-500.0,0.00041095,31]
[312587824,1706035844305,-500.0,0.00041095,31]
[312587825,1706035844314,-500.0,0.00041095,31]
[312587826,1706035844323,-500.0,0.00041095,31]
[312587827,1706035844333,-514.53677532,0.00041095,31]
[312587828,1706035844342,-500.0,0.00041095,31]
[312587829,1706035844351,-500.0,0.00041095,31]
[312587830,1706035844360,-301.97481586,0.00041095,31]
[312587831,1706035844369,-633.36,0.00041095,31]
[312587832,1706035844378,-197.60181926,0.00041095,31]
[312587833,1706035844501,-348.04663423,0.00041095,31]
[312587834,1706035844512,-500.0,0.00041095,31]
[312587835,1706035844522,-500.0,0.00041095,31]
[312587836,1706035844532,-500.0,0.00041095,31]
[312587837,1706035844541,-500.0,0.00041095,31]
[312587838,1706035844550,-500.0,0.00041095,31]
[312587839,1706035844560,-788.01,0.00041095,31]
[312587840,1706035844569,-788.01,0.00041095,31]
[312587841,1706035844578,-708.7775122,0.00041095,31]
[312587842,1706035844592,-79.2324878,0.00041095,31]
[312587843,1706035844602,-788.01,0.00041095,31]
[312587844,1706035844612,-788.01,0.00041095,31]
[312587845,1706035844621,-788.01,0.00041095,31]
[312587846,1706035844630,-788.01,0.00041095,31]
[312587847,1706035844639,-500.0,0.00041095,31]
[312587848,1706035844650,-788.01,0.00041095,31]
[312587849,1706035844659,-500.0,0.00041095,31]
[312587850,1706035844668,-788.01,0.00041095,31]
[312587851,1706035844677,-788.01,0.00041095,31]
[312587852,1706035844687,-788.01,0.00041095,31]
[312587853,1706035844696,-788.01,0.00041095,31]
[312587854,1706035844705,-788.01,0.00041095,31]
[312587855,1706035844715,-788.01,0.00041095,31]
[312587856,1706035844725,-788.01,0.00041095,31]
[312587857,1706035844734,-788.01,0.00041095,31]
[312587858,1706035844743,-500.0,0.00041095,31]
[312587859,1706035844753,-205.92009159,0.00041095,31]
[312587860,1706035844762,-500.0,0.00041095,31]
[312587861,1706035844771,-502.21799977,0.00041095,31]
[312587862,1706035844781,-500.0,0.00041095,31]
[312587863,1706035844790,-500.0,0.00041095,31]
[312587864,1706035844800,-182.96013886,0.00041095,31]
[312587865,1706035844810,-1895.32,0.00041095,2]
[312587866,1706035844819,-754.46,0.00041095,31]
[312587867,1706035844828,-500.0,0.00041095,31]
[312587868,1706035844837,-502.29114101,0.00041095,31]
[312587869,1706035844846,-500.0,0.00041095,31]
[312587870,1706035844855,-500.0,0.00041095,31]
[312587871,1706035844865,-500.0,0.00041095,31]
[312587872,1706035844874,-500.0,0.00041095,31]
[312587873,1706035844883,-500.0,0.00041095,31]
[312587874,1706035844893,-500.0,0.00041095,31]
[312587875,1706035844902,-500.0,0.00041095,31]
[312587876,1706035844912,-500.0,0.00041095,31]
[312587877,1706035844920,-500.0,0.00041095,31]
[312587878,1706035844930,-2203.52,0.00041095,31]
[312587879,1706035844939,-527.48654549,0.00041095,31]
[312587880,1706035844948,-500.0,0.00041095,31]
[312587881,1706035844958,-500.0,0.00041095,31]
[312587882,1706035844967,-500.0,0.00041095,31]
[312587883,1706035844976,-500.0,0.00041095,31]
[312587884,1706035844985,-500.0,0.00041095,31]
[312587885,1706035844994,-500.0,0.00041095,31]
[312587886,1706035845003,-500.0,0.00041095,31]
[312587887,1706035845012,-500.0,0.00041095,31]
[312587888,1706035845021,-500.0,0.00041095,31]
[312587889,1706035845030,-500.0,0.00041095,31]
[312587890,1706035845039,-500.0,0.00041095,31]
[312587891,1706035845049,-500.0,0.00041095,31]
[312587892,1706035845058,-500.0,0.00041095,31]
[312587893,1706035845068,-500.0,0.00041095,31]
[312587894,1706035845077,-500.0,0.00041095,31]
[312587895,1706035845086,-500.0,0.00041095,31]
[312587896,1706035845095,-500.0,0.00041095,31]
[312587897,1706035845105,-500.0,0.00041095,31]
[312587898,1706035845113,-500.0,0.00041095,31]
[312587899,1706035845122,-500.0,0.00041095,31]
[312587900,1706035845131,-500.0,0.00041095,31]
[312587901,1706035845141,-500.0,0.00041095,31]
[312587902,1706035845151,-501.43151573,0.00041095,31]
[312587903,1706035845160,-500.0,0.00041095,31]
[312587904,1706035845169,-1558.91,0.00041095,31]
[312587905,1706035845179,-500.0,0.00041095,31]
[312587906,1706035845187,-500.0,0.00041095,31]
[312587907,1706035845197,-500.0,0.00041095,31]
[312587908,1706035845206,-500.0,0.00041095,30]
[312587909,1706035845215,-500.0,0.00041095,31]
[312587910,1706035845224,-500.0,0.00041095,31]
[312587911,1706035845232,-500.0,0.00041095,31]
[312587912,1706035845242,-500.0,0.00041095,31]
[312587913,1706035845251,-500.0,0.00041095,31]
[312587914,1706035845260,-500.0,0.00041095,31]
[312587915,1706035845269,-151.60289229,0.00041095,31]
[312587916,1706035845279,-557.8685206,0.00041095,14]
[312587917,1706035845288,-500.0,0.00041095,31]
[312587918,1706035845298,-533.09991793,0.00041095,31]
[312587919,1706035845307,-500.0,0.00041095,31]
[312587920,1706035845316,-500.0,0.00041095,31]
[312587921,1706035845325,-500.0,0.00041095,31]
[312587923,1706035845334,-500.0,0.00041095,31]
[312587924,1706035845344,-500.0,0.00041095,31]
[312587925,1706035845352,-500.0,0.00041095,31]
[312587926,1706035845362,-500.0,0.00041095,31]
[312587927,1706035845372,-500.0,0.00041095,31]
[312587928,1706035845381,-500.0,0.00041095,31]
[312587929,1706035845390,-500.0,0.00041095,31]
[312587931,1706035845400,-500.0,0.00041095,31]
[312587932,1706035845409,-500.0,0.00041095,31]
[312587933,1706035845418,-174.78088265,0.00041095,31]
[312587934,1706035845429,-511.88137014,0.00041095,31]
[312587935,1706035845439,-1000.0,0.00041095,2]
[312587936,1706035845449,-500.0,0.00041095,31]
[312587937,1706035845458,-1000.0,0.00041095,2]
[312587938,1706035845467,-500.0,0.00041095,31]
[312587939,1706035845477,-500.0,0.00041095,31]
[312587940,1706035845486,-500.0,0.00041095,31]
[312587941,1706035845495,-500.0,0.00041095,31]
[312587942,1706035845504,-575.7413397,0.00041095,31]
[312587943,1706035845513,-500.0,0.00041095,31]
[312587945,1706035845525,-500.0,0.00041095,31]
[312587947,1706035845534,-500.0,0.00041095,31]
[312587948,1706035845543,-595.67026586,0.00041095,31]
[312587949,1706035845552,-500.0,0.00041095,31]
[312587950,1706035845562,-500.0,0.00041095,31]
[312587951,1706035845571,-168.36859167,0.00041095,31]
[312587952,1706035845580,-500.0,0.00041095,31]
[312587953,1706035845590,-523.73977514,0.00041095,31]
[312587954,1706035845599,-725.4,0.00041095,31]
[312587955,1706035845610,-500.0,0.00041095,31]
[312587956,1706035845619,-1613.46,0.00041095,31]
[312587957,1706035845628,-500.0,0.00041095,31]
[312587958,1706035845637,-246.99032577,0.00041095,31]
[312587959,1706035845647,-500.0,0.00041095,31]
[312587960,1706035845656,-500.0,0.00041095,31]
[312587961,1706035845665,-500.0,0.00041095,31]
[312587962,1706035845674,-603.28,0.00041095,31]
[312587963,1706035845683,-364.68481734,0.00041095,31]
[312587964,1706035845693,-500.0,0.00041095,31]
[312587965,1706035845702,-500.0,0.00041095,31]
[312587966,1706035845711,-617.7,0.00041095,31]
[312587967,1706035845720,-500.0,0.00041095,2]
[312587968,1706035845730,-620.08,0.00041095,31]
[312587969,1706035845739,-334.84369851,0.00041095,31]
[312587970,1706035845748,-500.0,0.00041095,31]
[312587971,1706035845757,-636.59,0.00041095,31]
[312587972,1706035845767,-500.0,0.00041095,31]
[312587973,1706035845776,-500.0,0.00041095,31]
[312587974,1706035845787,-500.0,0.00041095,31]
[312587975,1706035845797,-500.0,0.00041095,31]
[312587976,1706035845808,-500.0,0.00041095,31]
[312587977,1706035845818,-500.0,0.00041095,31]
[312587978,1706035845829,-362.75084611,0.00041095,31]
[312587979,1706035845840,-511.59866072,0.00041095,31]
[312587980,1706035845850,-500.0,0.00041095,31]
[312587981,1706035845861,-150.0,0.00041095,31]
[312587982,1706035845873,-500.0,0.00041095,31]
[312587983,1706035845883,-500.0,0.00041095,31]
[312587984,1706035845894,-500.0,0.00041095,31]
[312587985,1706035845904,-500.0,0.00041095,31]
[312587986,1706035845914,-500.0,0.00041095,31]
[312587987,1706035845925,-500.0,0.00041095,31]
[312587988,1706035845935,-500.0,0.00041095,31]
[312587989,1706035845945,-500.0,0.00041095,31]
[312587991,1706035845956,-576.90041196,0.00041095,31]
[312587992,1706035845965,-1167.47,0.00041095,31]
[312587993,1706035845975,-500.0,0.00041095,31]